bitfinex/quotes_BTCUSD_20230118
["timestamp","ask_amount","ask_price","bid_price","bid_amount"]
[1674036169158,0.002,21218.0,21216.0,0.471336]
[1674036169639,0.002,21218.0,21215.0,0.58818247]
[1674036169640,0.00095919,21217.0,21215.0,0.58818247]
[1674036169886,0.00095919,21217.0,21215.0,0.475348]
[1674036170154,0.00095919,21217.0,21215.0,0.942712]
[1674036170392,0.00095919,21217.0,21216.0,0.001]
[1674036170640,0.47550062,21221.0,21217.0,0.00095918]
[1674036170887,0.47550062,21221.0,21217.0,0.19168513]
[1674036170888,0.36028596,21219.0,21217.0,0.19168513]
[1674036171131,0.36028596,21219.0,21217.0,0.00095918]
[1674036171920,0.44328596,21219.0,21217.0,0.00195918]
[1674036172174,0.91457096,21219.0,21217.0,0.00195918]
[1674036172421,0.44328596,21219.0,21217.0,0.00195918]
[1674036173664,0.083,21219.0,21217.0,0.30195918]
[1674036173910,0.083,21219.0,21217.0,0.94459518]
[1674036175150,0.083,21219.0,21218.0,0.3]
[1674036175391,0.083,21219.0,21218.0,1.242594]
[1674036176152,0.18471248,21221.0,21218.0,1.50542847]
[1674036176393,0.18471248,21221.0,21219.0,0.11283447]
[1674036176643,0.083,21219.0,21218.0,0.69568561]
[1674036176894,0.083,21219.0,21218.0,2.8824322]
[1674036177130,0.083,21219.0,21218.0,3.05162027]
[1674036177394,0.083,21219.0,21218.0,3.33357841]
[1674036177638,0.18471248,21221.0,21218.0,1.45019202]
[1674036177882,0.26071248,21221.0,21219.0,0.002]
[1674036178124,0.18471248,21221.0,21220.0,0.471253]
[1674036178834,0.1846103,21221.0,21220.0,0.471253]
[1674036179070,0.18556949,21221.0,21220.0,0.471253]
[1674036179358,0.18556949,21221.0,21219.0,0.471255]
[1674036179852,0.18556949,21221.0,21220.0,0.002]
[1674036180087,0.26056949,21221.0,21220.0,0.002]
[1674036180344,0.1846103,21221.0,21220.0,0.07753]
[1674036180604,0.1886103,21221.0,21220.0,0.07753]
[1674036181079,0.1846103,21221.0,21220.0,0.07753]
[1674036181330,0.1846103,21221.0,21220.0,0.471253]
[1674036181331,0.18556949,21221.0,21220.0,0.471253]
[1674036181570,0.1846103,21221.0,21220.0,0.471253]
[1674036182310,0.18556949,21221.0,21219.0,0.471261]
[1674036182559,0.18556949,21221.0,21219.0,0.942518]
[1674036182804,0.26056949,21221.0,21220.0,0.002]
[1674036183047,0.18556949,21221.0,21219.0,0.471261]
[1674036183566,0.18956949,21221.0,21219.0,0.473261]
[1674036184053,0.1886103,21221.0,21219.0,0.473261]
[1674036185803,0.1886103,21221.0,21219.0,1.05734429]
[1674036186304,0.1886103,21221.0,21220.0,0.3]
[1674036186580,0.1886103,21221.0,21220.0,0.942506]
[1674036187095,0.1886103,21221.0,21220.0,1.242506]
[1674036187316,0.1846103,21221.0,21220.0,1.242506]
[1674036187553,0.2596103,21221.0,21220.0,1.244506]
[1674036188040,0.2596103,21221.0,21220.0,1.35731429]
[1674036188302,0.2596103,21221.0,21220.0,1.8261567]
[1674036188550,0.2596103,21221.0,21220.0,1.995369]
[1674036189032,0.2596103,21221.0,21220.0,1.8261567]
[1674036189283,0.2596103,21221.0,21220.0,2.46418067]
[1674036189572,0.075,21221.0,21220.0,1.8261567]
[1674036191814,0.2803707,21227.0,21221.0,0.22576127]
[1674036192073,0.2803707,21227.0,21222.0,1.90429895]
[1674036192324,0.2803707,21227.0,21223.0,0.34072595]
[1674036192571,0.2803707,21227.0,21224.0,1.13304595]
[1674036193350,0.19010585,21228.0,21224.0,1.13304595]
[1674036193585,0.19010585,21228.0,21225.0,0.3]
[1674036193845,0.19010585,21228.0,21226.0,0.94224]
[1674036195318,0.19010585,21228.0,21226.0,1.03524]
[1674036195818,0.19010585,21228.0,21226.0,0.94224]
[1674036196074,0.19010585,21228.0,21226.0,0.97424]
[1674036196317,0.19010585,21228.0,21227.0,0.3]
[1674036196558,0.19010585,21228.0,21227.0,1.242196]
[1674036197855,0.19110585,21228.0,21227.0,1.243196]
[1674036199647,0.19110585,21228.0,21227.0,0.943196]
[1674036206074,0.19110585,21228.0,21227.0,1.243196]
[1674036208777,0.18483313,21228.0,21227.0,1.243196]
[1674036212463,0.18483313,21228.0,21227.0,1.393196]
[1674036212740,0.18483313,21228.0,21227.0,1.243196]
[1674036213228,0.18383313,21228.0,21227.0,1.242196]
[1674036213485,0.18383313,21228.0,21227.0,1.334196]
[1674036215227,0.18383313,21228.0,21227.0,1.034196]
[1674036216711,0.18383313,21228.0,21227.0,1.334196]
[1674036223565,0.18479232,21228.0,21227.0,1.034196]
[1674036224348,0.51477232,21228.0,21227.0,0.563098]
[1674036225125,0.51381313,21228.0,21227.0,0.563098]
[1674036225381,0.18383313,21228.0,21227.0,0.563098]
[1674036225637,0.18479232,21228.0,21227.0,0.563098]
[1674036226144,0.18383313,21228.0,21227.0,0.563098]
[1674036226688,0.18479232,21228.0,21227.0,0.563098]
[1674036226943,0.18383313,21228.0,21227.0,0.563098]
[1674036227762,0.18479232,21228.0,21227.0,0.563098]
[1674036228025,0.18383313,21228.0,21227.0,0.563098]
[1674036229266,0.18383313,21228.0,21227.0,1.034196]
[1674036229527,0.18383313,21228.0,21227.0,1.334196]
[1674036230323,0.18383313,21228.0,21227.0,1.034196]
[1674036231610,0.18383313,21228.0,21227.0,1.1469155]
[1674036232153,0.18479232,21228.0,21227.0,0.6758175]
[1674036232404,0.18383313,21228.0,21227.0,0.6758175]
[1674036232990,0.18383313,21228.0,21227.0,1.034196]
[1674036233245,0.1837562,21228.0,21227.0,2.9265821]
[1674036233510,0.1837562,21228.0,21227.0,3.15218376]
[1674036234047,0.1837562,21228.0,21227.0,3.15246644]
[1674036234302,0.1837562,21228.0,21227.0,3.26506384]
[1674036234571,0.1837562,21228.0,21227.0,3.03946218]
[1674036236178,0.1837562,21228.0,21227.0,3.26525541]
[1674036236443,0.1837562,21228.0,21227.0,3.15264714]
[1674036237244,0.1837562,21228.0,21227.0,1.98466461]
[1674036237502,0.1837562,21228.0,21227.0,2.92683127]
[1674036238045,0.1837562,21228.0,21227.0,3.1526245]
[1674036238299,0.1837562,21228.0,21227.0,2.09756504]
[1674036238561,0.1837562,21228.0,21227.0,2.92683329]
[1674036238820,0.1837562,21228.0,21227.0,1.61644794]
[1674036239356,0.1837562,21228.0,21227.0,2.10315511]
[1674036239606,0.00694606,21228.0,21227.0,1.61644794]
[1674036240407,0.00694606,21228.0,21227.0,2.25862785]
[1674036240715,0.42843679,21228.0,21227.0,0.563098]
[1674036240973,0.7501206,21228.0,21227.0,0.563098]
[1674036241503,0.75107979,21228.0,21227.0,1.034196]
[1674036241760,0.4274776,21228.0,21227.0,1.034196]
[1674036242244,0.00694606,21228.0,21227.0,1.03309159]
[1674036242766,0.00694606,21228.0,21227.0,1.1459949]
[1674036243341,0.00694606,21228.0,21227.0,1.4459949]
[1674036243852,0.00694606,21228.0,21227.0,0.6748969]
[1674036244126,0.00790525,21228.0,21227.0,1.1459949]
[1674036244380,0.00694606,21228.0,21227.0,1.03309159]
[1674036244919,0.00694606,21228.0,21227.0,1.1459949]
[1674036245489,0.00694606,21228.0,21227.0,1.4459949]
[1674036246515,0.00694606,21228.0,21227.0,2.11059541]
[1674036247274,0.00694606,21228.0,21227.0,1.4459949]
[1674036247792,0.00694606,21228.0,21227.0,1.80607072]
[1674036248052,0.00694606,21228.0,21227.0,2.99701158]
[1674036248305,0.00694606,21228.0,21227.0,3.05317649]
[1674036249076,0.00694606,21228.0,21227.0,2.80828327]
[1674036251189,0.0065526,21230.0,21228.0,0.00817755]
[1674036251391,0.0065526,21230.0,21229.0,1.94608615]
[1674036251648,0.0065526,21230.0,21229.0,4.2274963]
[1674036251939,0.0065526,21230.0,21229.0,4.90177191]
[1674036252196,0.0065526,21230.0,21229.0,4.62060664]
[1674036252482,0.0065526,21230.0,21229.0,3.66413137]
[1674036252737,0.0065526,21230.0,21229.0,4.33398512]
[1674036253003,0.00885304,21231.0,21230.0,0.30908694]
[1674036253265,0.00885304,21231.0,21230.0,3.32073358]
[1674036253526,0.00885304,21231.0,21230.0,3.9429805]
[1674036253827,0.00885304,21231.0,21230.0,3.32073358]
[1674036254366,0.00885304,21231.0,21230.0,2.9977757]
[1674036254625,0.00885304,21231.0,21230.0,3.3714966]
[1674036255433,0.00885304,21231.0,21230.0,3.279625]
[1674036255695,0.00885304,21231.0,21230.0,3.371625]
[1674036255987,0.00885304,21231.0,21230.0,1.76629047]
[1674036256236,0.00885304,21231.0,21230.0,1.97097749]
[1674036256629,0.00885304,21231.0,21230.0,1.38299115]
[1674036256631,0.00885304,21231.0,21230.0,1.88260242]
[1674036257299,0.00885304,21231.0,21230.0,1.97460242]
[1674036257740,0.00885304,21231.0,21230.0,2.1619154]
[1674036257920,0.00885304,21231.0,21230.0,2.38727692]
[1674036258159,0.00885304,21231.0,21230.0,2.1619154]
[1674036258402,0.00885304,21231.0,21230.0,2.27454227]
[1674036259402,0.00885304,21231.0,21230.0,1.774931]
[1674036259644,0.00885304,21231.0,21230.0,2.27502718]
[1674036259911,0.00885304,21231.0,21230.0,2.16240031]
[1674036260150,0.00885304,21231.0,21230.0,2.3876163]
[1674036260422,0.00885304,21231.0,21230.0,3.32952799]
[1674036260887,0.00885304,21231.0,21230.0,2.3876163]
[1674036261375,0.00885304,21231.0,21230.0,2.27483702]
[1674036261614,0.00885304,21231.0,21230.0,2.16209844]
[1674036261857,0.00885304,21231.0,21230.0,1.77474131]
[1674036262100,0.00885304,21231.0,21230.0,1.60586005]
[1674036262576,0.00885304,21231.0,21230.0,1.77474131]
[1674036262828,0.00885304,21231.0,21230.0,1.60586005]
[1674036263089,0.00885304,21231.0,21230.0,2.274391]
[1674036263578,0.00885304,21231.0,21230.0,1.52944165]
[1674036263818,0.00885304,21231.0,21230.0,1.41685894]
[1674036264548,0.00885304,21231.0,21230.0,1.52944165]
[1674036265303,0.00885304,21231.0,21230.0,2.19799335]
[1674036265801,0.00885304,21231.0,21230.0,2.08541064]
[1674036266296,0.00885304,21231.0,21230.0,2.19797921]
[1674036266843,1e-08,21232.0,21230.0,1.8108788]
[1674036267100,1e-08,21232.0,21231.0,0.3]
[1674036267347,1e-08,21232.0,21231.0,1.24214639]
[1674036268323,1e-08,21232.0,21231.0,1.33414639]
[1674036274746,1e-08,21232.0,21231.0,1.44671642]
[1674036275248,1e-08,21232.0,21231.0,1.33414639]
[1674036275978,1e-08,21232.0,21231.0,1.44671642]
[1674036276723,1e-08,21232.0,21231.0,1.24214639]
[1674036276967,1e-08,21232.0,21231.0,1.44671642]
[1674036277470,1e-08,21232.0,21231.0,1.35471642]
[1674036277712,1e-08,21232.0,21231.0,1.44671642]
[1674036278437,1e-08,21232.0,21231.0,1.33414639]
[1674036278691,1e-08,21232.0,21231.0,1.44671642]
[1674036280425,1e-08,21232.0,21231.0,1.61559768]
[1674036280701,1e-08,21232.0,21231.0,1.44671642]
[1674036280951,1e-08,21232.0,21231.0,2.11601008]
[1674036281957,1e-08,21232.0,21231.0,2.07884005]
[1674036282198,0.00942894,21236.0,21232.0,5.999e-05]
[1674036282437,0.00942894,21236.0,21233.0,1.71627429]
[1674036282688,0.00942894,21236.0,21234.0,0.3]
[1674036282922,0.00942894,21236.0,21235.0,0.94184]
[1674036283951,0.01042894,21236.0,21235.0,0.94284]
[1674036284441,0.01042894,21236.0,21235.0,0.97384]
[1674036284710,0.00942894,21236.0,21235.0,0.94184]
[1674036284939,0.01042894,21236.0,21235.0,0.94284]
[1674036286230,0.01042894,21236.0,21235.0,0.94296836]
[1674036287724,0.01042894,21236.0,21235.0,1.24296836]
[1674036288447,0.01042894,21236.0,21235.0,1.3556367]
[1674036289462,0.01042894,21236.0,21235.0,1.0556367]
[1674036289964,0.01042894,21236.0,21235.0,1.3556367]
[1674036290482,0.01042894,21236.0,21235.0,1.52463921]
[1674036290745,0.01042894,21236.0,21235.0,2.0269202]
[1674036291244,0.01042894,21236.0,21235.0,2.85604773]
[1674036291491,0.01042894,21236.0,21235.0,3.19412764]
[1674036291988,0.01042894,21236.0,21235.0,3.08170486]
[1674036292231,0.01042894,21236.0,21235.0,2.85634334]
[1674036292756,0.01042894,21236.0,21235.0,3.19412764]
[1674036293275,0.01042894,21236.0,21235.0,3.41452764]
[1674036293777,0.01042894,21236.0,21235.0,3.19145434]
[1674036294023,0.01042894,21236.0,21235.0,2.13713174]
[1674036294283,0.01042894,21236.0,21235.0,1.63485075]
[1674036294514,0.01042894,21236.0,21235.0,1.46560315]
[1674036295026,0.01042894,21236.0,21235.0,1.35580315]
[1674036296021,0.01042894,21236.0,21235.0,0.94296836]
[1674036296561,0.01042894,21236.0,21235.0,1.35580315]
[1674036296871,1e-08,21236.0,21235.0,1.35580315]
[1674036297070,1e-08,21236.0,21235.0,1.24296836]
[1674036297562,1e-08,21236.0,21235.0,1.52505075]
[1674036298544,1e-08,21236.0,21235.0,1.05580315]
[1674036299538,1e-08,21236.0,21235.0,0.94296836]
[1674036300032,1e-08,21236.0,21235.0,1.35580315]
[1674036300285,1e-08,21236.0,21235.0,1.05580315]
[1674036300527,1e-08,21236.0,21235.0,1.35580315]
[1674036300764,1e-08,21236.0,21235.0,1.05580315]
[1674036301578,1e-08,21236.0,21235.0,0.93996836]
[1674036303292,1e-08,21236.0,21235.0,0.93984]
[1674036303536,0.0009592,21236.0,21235.0,0.93984]
[1674036303789,0.5496542,21236.0,21235.0,0.93984]
[1674036304028,0.54869501,21236.0,21235.0,0.93984]
[1674036304274,0.54869501,21236.0,21235.0,0.46892]
[1674036304519,0.5496542,21236.0,21235.0,0.46892]
[1674036304782,0.54869501,21236.0,21235.0,0.46892]
[1674036305532,0.5496542,21236.0,21235.0,0.46892]
[1674036305796,0.54869501,21236.0,21235.0,0.46892]
[1674036306558,0.5496542,21236.0,21235.0,0.46892]
[1674036306858,0.5496542,21236.0,21235.0,0.001]
[1674036308289,0.54869501,21236.0,21235.0,0.001]
[1674036311975,0.5496542,21236.0,21235.0,0.001]
[1674036312660,0.54869501,21236.0,21235.0,0.001]
[1674036313990,1e-08,21236.0,21235.0,1.09666]
[1674036314251,1e-08,21236.0,21235.0,1.20949479]
[1674036315277,1e-08,21236.0,21235.0,1.09666]
[1674036315544,1e-08,21236.0,21235.0,0.62574]
[1674036316345,1e-08,21236.0,21235.0,0.73857479]
[1674036316608,1e-08,21236.0,21235.0,1.09666]
[1674036319020,1e-08,21236.0,21235.0,1.39666]
[1674036320343,1e-08,21236.0,21235.0,1.02037]
[1674036320600,0.0009592,21236.0,21235.0,0.47192]
[1674036321142,0.6258482,21236.0,21235.0,0.47192]
[1674036321702,0.6258482,21236.0,21235.0,0.001]
[1674036321703,0.62488901,21236.0,21235.0,0.001]
[1674036322226,0.54859901,21236.0,21235.0,0.001]
[1674036323330,0.53798701,21236.0,21235.0,0.001]
[1674036323601,0.22100001,21236.0,21235.0,0.001]
[1674036323887,0.53948901,21236.0,21235.0,0.001]
[1674036324147,0.5404482,21236.0,21235.0,0.001]
[1674036325208,0.53948901,21236.0,21235.0,0.001]
[1674036326506,0.5404482,21236.0,21235.0,0.001]
[1674036326697,0.53948901,21236.0,21235.0,0.001]
[1674036327695,0.5404482,21236.0,21235.0,0.001]
[1674036328436,0.53948901,21236.0,21235.0,0.001]
[1674036328934,0.5404482,21236.0,21235.0,0.001]
[1674036330467,0.53948901,21236.0,21235.0,0.001]
[1674036331006,1.03274786,21236.0,21235.0,0.001]
[1674036331258,1.86700768,21236.0,21235.0,0.001]
[1674036333324,1.86700768,21236.0,21232.0,0.47103299]
[1674036333325,0.15,21235.0,21232.0,0.24463633]
[1674036333591,0.1101,21233.0,21231.0,0.470994]
[1674036333845,0.426077,21232.0,21231.0,0.470994]
[1674036334404,0.1106,21232.0,21231.0,0.470994]
[1674036335188,0.1106,21232.0,21231.0,0.554994]
[1674036335461,0.1106,21232.0,21231.0,0.470994]
[1674036335720,0.1116,21232.0,21231.0,0.554994]
[1674036336028,0.438817,21232.0,21231.0,0.554994]
[1674036336286,0.428585,21232.0,21231.0,0.554994]
[1674036336538,0.1116,21232.0,21231.0,0.554994]
[1674036336826,0.410503,21232.0,21231.0,0.554994]
[1674036337591,0.632103,21232.0,21231.0,0.084]
[1674036339116,0.521503,21232.0,21231.0,0.084]
[1674036339375,0.2226,21232.0,21231.0,0.855009]
[1674036339642,0.48114875,21234.0,21232.0,0.298903]
[1674036339906,0.2218,21233.0,21232.0,0.298903]
[1674036340185,0.55128,21233.0,21232.0,0.298903]
[1674036340481,0.44038,21233.0,21232.0,0.298903]
[1674036341797,0.44138,21233.0,21232.0,0.383903]
[1674036342596,0.44038,21233.0,21232.0,0.298903]
[1674036342856,0.44038,21233.0,21232.0,0.335903]
[1674036343149,0.32948,21233.0,21232.0,0.298903]
[1674036343440,0.33748,21233.0,21232.0,0.299903]
[1674036343981,0.008,21233.0,21232.0,0.299903]
[1674036344989,0.478965,21233.0,21232.0,0.299903]
[1674036345247,0.328379,21233.0,21232.0,0.299903]
[1674036347090,0.008,21233.0,21232.0,0.299903]
[1674036347359,0.316872,21233.0,21232.0,0.299903]
[1674036347616,0.31783119,21233.0,21232.0,0.299903]
[1674036347852,0.316872,21233.0,21232.0,0.299903]
[1674036348081,0.008,21233.0,21232.0,0.299903]
[1674036349370,0.008,21233.0,21232.0,0.001]
[1674036349638,0.008,21233.0,21232.0,0.549517]
[1674036350147,0.008,21233.0,21232.0,1.320504]
[1674036350405,0.008,21233.0,21232.0,1.65383879]
[1674036351693,0.008,21233.0,21232.0,1.43333879]
[1674036353558,0.008,21233.0,21232.0,1.13333879]
[1674036353850,0.008,21233.0,21232.0,1.320504]
[1674036354130,0.008,21233.0,21232.0,1.43333879]
[1674036354635,0.008,21233.0,21232.0,1.320504]
[1674036354895,0.008,21233.0,21232.0,1.43333879]
[1674036355430,0.008,21233.0,21232.0,1.020504]
[1674036355694,0.008,21233.0,21232.0,0.942974]
[1674036355695,0.00895919,21233.0,21232.0,0.942974]
[1674036355953,0.008,21233.0,21232.0,0.942974]
[1674036357029,0.00895919,21233.0,21232.0,0.942974]
[1674036357287,0.008,21233.0,21232.0,0.942974]
[1674036359614,0.008,21233.0,21232.0,0.937974]
[1674036361714,0.008,21233.0,21232.0,0.466987]
[1674036361715,0.08524919,21233.0,21232.0,0.466987]
[1674036361971,0.08524919,21233.0,21231.0,0.470988]
[1674036362227,0.320625,21232.0,21230.0,0.471011]
[1674036362489,0.322539,21231.0,21230.0,0.471011]
[1674036362748,0.0754,21232.0,21230.0,0.471011]
[1674036363025,0.07635919,21233.0,21230.0,0.471011]
[1674036363278,0.321954,21232.0,21231.0,0.036]
[1674036363823,0.321954,21232.0,21231.0,0.031]
[1674036364616,0.321954,21232.0,21230.0,0.471028]
[1674036364617,0.001,21231.0,21230.0,0.551028]
[1674036364888,0.318591,21231.0,21229.0,0.58387279]
[1674036365146,0.241,21232.0,21229.0,0.58387279]
[1674036365724,0.24,21232.0,21229.0,0.471038]
[1674036365993,0.001,21231.0,21229.0,0.550038]
[1674036366267,0.710987,21232.0,21229.0,0.471038]
[1674036367045,0.323986,21231.0,21229.0,0.471038]
[1674036367302,0.711987,21232.0,21229.0,0.550038]
[1674036367586,0.84334397,21232.0,21229.0,0.550038]
[1674036367849,0.710987,21232.0,21229.0,0.471038]
[1674036368704,0.711987,21232.0,21229.0,0.079]
[1674036369514,0.72534793,21231.0,21229.0,0.079]
[1674036369818,0.31304619,21230.0,21229.0,0.079]
[1674036370325,0.00095919,21230.0,21229.0,0.079]
[1674036370573,0.00095919,21230.0,21227.0,1.05500679]
[1674036370830,0.00095919,21230.0,21229.0,0.471053]
[1674036371144,0.40452093,21231.0,21229.0,0.471053]
[1674036371396,0.40352093,21231.0,21229.0,0.471053]
[1674036371650,0.40448012,21231.0,21229.0,0.471053]
[1674036371900,0.001,21230.0,21229.0,0.471053]
[1674036372152,0.40352093,21231.0,21229.0,0.471053]
[1674036372466,0.40452093,21231.0,21229.0,0.550053]
[1674036372720,0.33008012,21231.0,21229.0,0.550053]
[1674036373218,0.001,21231.0,21229.0,0.550053]
[1674036373478,0.001,21231.0,21229.0,0.83213539]
[1674036374286,0.001,21231.0,21229.0,1.13394079]
[1674036375124,0.00195919,21231.0,21229.0,1.021106]
[1674036375647,0.001,21231.0,21229.0,1.021106]
[1674036376741,0.00195919,21231.0,21229.0,1.021106]
[1674036378293,0.001,21231.0,21229.0,1.021106]
[1674036380842,0.001,21231.0,21229.0,1.13394079]
[1674036381277,0.001,21231.0,21229.0,1.021106]
[1674036381494,0.001,21231.0,21229.0,1.13394079]
[1674036381725,0.001,21231.0,21229.0,1.021106]
[1674036381945,0.00195919,21231.0,21229.0,1.021106]
[1674036382388,0.001,21231.0,21229.0,1.13394079]
[1674036383726,0.00195919,21231.0,21229.0,1.021106]
[1674036384365,0.001,21231.0,21229.0,1.021106]
[1674036384642,0.001,21231.0,21229.0,1.13394079]
[1674036386282,0.001,21231.0,21229.0,1.021106]
[1674036388782,0.00195919,21231.0,21229.0,0.76879249]
[1674036389012,0.001,21231.0,21229.0,0.76879249]
[1674036389937,0.00195919,21231.0,21229.0,0.76879249]
[1674036390871,0.001,21231.0,21229.0,0.76879249]
[1674036391317,0.001,21231.0,21229.0,0.88162728]
[1674036391544,0.001,21231.0,21229.0,0.76879249]
[1674036392229,0.00195919,21231.0,21229.0,0.76879249]
[1674036393707,0.001,21231.0,21229.0,0.76879249]
[1674036394848,0.001,21231.0,21229.0,0.079]
[1674036395117,0.1113,21231.0,21229.0,0.079]
[1674036395387,0.327234,21230.0,21229.0,0.079]
[1674036396384,0.327234,21230.0,21228.0,0.471056]
[1674036396641,0.07729,21230.0,21229.0,0.079]
[1674036396948,0.411298,21230.0,21229.0,0.079]
[1674036397422,0.33496719,21230.0,21227.0,0.75316639]
[1674036397686,0.22383632,21230.0,21228.0,0.079]
[1674036397942,0.22283632,21230.0,21227.0,0.75316139]
[1674036398194,0.22383632,21230.0,21229.0,0.079]
[1674036398708,0.56427532,21230.0,21229.0,0.079]
[1674036398960,0.34239819,21230.0,21229.0,0.079]
[1674036399224,0.34139819,21230.0,21228.0,0.11283479]
[1674036399484,0.301639,21229.0,21227.0,1.22424139]
[1674036399753,0.00195919,21230.0,21227.0,1.30324139]
[1674036400002,0.00095919,21230.0,21227.0,1.22424139]
[1674036400253,0.00195919,21230.0,21228.0,0.079]
[1674036400520,0.581321,21231.0,21227.0,0.75316439]
[1674036400821,0.001,21230.0,21228.0,1.22423239]
[1674036401063,0.1103,21231.0,21228.0,1.22423239]
[1674036401290,0.1103,21231.0,21228.0,1.05498479]
[1674036401545,0.1103,21231.0,21228.0,0.471075]
[1674036401796,0.58131,21231.0,21228.0,0.471075]
[1674036402097,0.001,21230.0,21228.0,0.66290979]
[1674036402348,0.11125919,21231.0,21228.0,0.58390979]
[1674036402599,0.11225919,21231.0,21228.0,0.66290979]
[1674036403130,0.11225919,21231.0,21228.0,1.30323239]
[1674036403464,0.001,21231.0,21228.0,1.49395834]
[1674036403667,0.001,21231.0,21229.0,0.41283479]
[1674036403915,0.24,21232.0,21230.0,1.44767112]
[1674036404175,0.24,21232.0,21231.0,0.41290775]
[1674036404427,0.24,21232.0,21231.0,1.52417335]
[1674036404709,0.24,21232.0,21231.0,2.02434845]
[1674036404960,0.24,21232.0,21231.0,1.35492575]
[1674036405198,0.241,21232.0,21231.0,1.35492575]
[1674036405465,0.24,21232.0,21231.0,1.35492575]
[1674036406003,0.24,21232.0,21231.0,1.38992575]
[1674036407283,0.24,21232.0,21231.0,1.55917335]
[1674036407538,0.24,21232.0,21231.0,1.38992575]
[1674036407781,0.24,21232.0,21231.0,3.11324316]
[1674036408044,0.24,21232.0,21231.0,2.88788164]
[1674036408297,0.24,21232.0,21231.0,3.22424316]
[1674036408575,0.0085745,21237.0,21232.0,0.28769659]
[1674036408840,0.0085745,21237.0,21235.0,0.1105]
[1674036409083,0.0085745,21237.0,21235.0,0.30122595]
[1674036409583,0.0085745,21237.0,21235.0,0.1105]
[1674036409879,0.0085745,21237.0,21235.0,0.58142]
[1674036410109,0.0095745,21237.0,21235.0,0.58842]
[1674036410878,0.2395745,21237.0,21235.0,0.58842]
[1674036411209,0.2385745,21237.0,21235.0,1.05234]
[1674036411682,0.2385745,21237.0,21235.0,0.94184]
[1674036411940,0.2385745,21237.0,21235.0,0.96984]
[1674036413805,0.23953369,21237.0,21235.0,0.96984]
[1674036414077,0.2385745,21237.0,21235.0,0.49892]
[1674036415398,0.2385745,21237.0,21235.0,0.96984]
[1674036416673,0.2385745,21237.0,21235.0,0.49892]
[1674036417954,0.23953369,21237.0,21235.0,0.49892]
[1674036418211,0.2385745,21237.0,21235.0,0.49892]
[1674036419525,0.2385745,21237.0,21235.0,0.028]
[1674036419791,0.54042887,21237.0,21235.0,0.028]
[1674036420050,1.01130687,21237.0,21235.0,0.028]
[1674036420324,0.315493,21236.0,21235.0,0.028]
[1674036420632,1.01034768,21237.0,21235.0,0.028]
[1674036420891,0.320707,21236.0,21235.0,0.028]
[1674036421153,1.01034968,21237.0,21235.0,0.028]
[1674036421409,0.53946968,21237.0,21234.0,0.941846]
[1674036421690,0.53946968,21237.0,21235.0,0.028]
[1674036421949,0.53946968,21237.0,21234.0,0.941867]
[1674036422196,0.53946968,21237.0,21235.0,0.028]
[1674036422464,0.54042887,21237.0,21235.0,0.028]
[1674036422717,0.53946968,21237.0,21235.0,0.028]
[1674036423025,0.65046968,21237.0,21235.0,0.028]
[1674036423545,0.65046968,21237.0,21235.0,0.498917]
[1674036423808,0.65142887,21237.0,21235.0,0.498917]
[1674036424066,0.65046968,21237.0,21235.0,0.498917]
[1674036424882,0.65142887,21237.0,21235.0,0.498917]
[1674036425136,0.65046968,21237.0,21235.0,0.498917]
[1674036426176,0.333545,21236.0,21235.0,0.498917]
[1674036426433,0.65142887,21237.0,21235.0,0.498917]
[1674036426689,0.65046968,21237.0,21235.0,0.498917]
[1674036427020,0.65046968,21237.0,21235.0,0.470917]
[1674036427220,0.322339,21236.0,21235.0,0.470917]
[1674036427452,0.65142887,21237.0,21235.0,0.47092]
[1674036427719,0.65142887,21237.0,21234.0,0.470928]
[1674036427984,0.324414,21236.0,21235.0,0.028]
[1674036428252,1.017312,21236.0,21235.0,0.028]
[1674036428506,1.167312,21236.0,21232.0,0.28769659]
[1674036428757,0.440892,21235.0,21232.0,0.75867059]
[1674036429011,0.319398,21234.0,21232.0,0.75867059]
[1674036429258,0.41693932,21235.0,21232.0,0.75867059]
[1674036429544,0.41693932,21235.0,21232.0,1.22965759]
[1674036430010,0.1108885,21235.0,21232.0,1.22965759]
[1674036430261,0.1108885,21235.0,21234.0,0.093]
[1674036430520,0.2385745,21237.0,21234.0,0.52292595]
[1674036430786,0.2385745,21237.0,21235.0,0.3]
[1674036431037,0.2385745,21237.0,21236.0,1.412694]
[1674036431288,0.2385745,21237.0,21236.0,1.712694]
[1674036431818,0.2385745,21237.0,21236.0,2.12541995]
[1674036432097,0.00939318,21239.0,21237.0,0.50475917]
[1674036432326,0.00939318,21239.0,21238.0,1.412562]
[1674036432585,0.00939318,21239.0,21238.0,2.00317101]
[1674036432835,0.00939318,21239.0,21238.0,1.721062]
[1674036433093,0.00939318,21239.0,21238.0,1.942662]
[1674036433340,0.00939318,21239.0,21238.0,1.634162]
[1674036433604,0.00939318,21239.0,21238.0,0.941708]
[1674036434105,0.00939318,21239.0,21238.0,0.470854]
[1674036434365,0.01035237,21239.0,21238.0,0.470854]
[1674036434659,0.32934418,21239.0,21238.0,0.092]
[1674036434892,0.32934418,21239.0,21238.0,1.18272656]
[1674036434893,0.00939318,21239.0,21238.0,1.18272656]
[1674036435148,0.35843352,21248.0,21241.0,0.56285768]
[1674036435413,0.111,21248.0,21243.0,0.941482]
[1674036435675,0.12370766,21248.0,21244.0,0.19072595]
[1674036435977,0.12370766,21248.0,21245.0,0.66141995]
[1674036436517,0.222,21246.0,21242.0,0.470761]
[1674036436771,0.424623,21245.0,21242.0,0.470761]
[1674036437021,0.314861,21244.0,21242.0,0.470761]
[1674036437311,0.111,21245.0,21242.0,0.470761]
[1674036437578,0.111,21245.0,21242.0,0.941526]
[1674036438336,0.111,21245.0,21242.0,0.968526]
[1674036439119,0.111,21245.0,21242.0,0.941526]
[1674036439381,0.111,21245.0,21242.0,0.968526]
[1674036441437,0.55532731,21247.0,21242.0,0.968526]
[1674036441680,0.23,21245.0,21242.0,1.15925195]
[1674036441935,0.23,21245.0,21242.0,0.968526]
[1674036442554,0.23,21245.0,21242.0,0.941526]
[1674036442716,0.23,21245.0,21242.0,0.968526]